bitfinex-derivatives/quotes_SOLF0:USTF0_20250130
["timestamp","ask_amount","ask_price","bid_price","bid_amount"]
[1738271340781,11.44098533,239.09,239.08,5.98e-05]
[1738271342480,4.1818,239.09,239.08,5.98e-05]
[1738271343479,4.1816,239.11,239.08,5.98e-05]
[1738271343876,7.28883939,239.13,239.08,5.98e-05]
[1738271344282,0.02965406,239.13,239.08,5.98e-05]
[1738271344581,0.02965406,239.13,239.08,7.25924513]
[1738271346581,0.02965406,239.13,239.08,5.98e-05]
[1738271347182,0.02965406,239.13,239.09,4.1818]
[1738271347574,0.02965406,239.13,239.08,2.1978598]
[1738271350689,0.02965406,239.13,239.1,4.1816]
[1738271350892,0.02965406,239.13,239.08,2.1978598]
[1738271351390,0.02965406,239.13,239.09,4.1818]
[1738271351586,0.02965406,239.13,239.08,2.1978598]
[1738271351793,0.02965406,239.13,239.08,5.98e-05]
[1738271352286,0.02965406,239.13,239.07,5.98e-05]
[1738271352483,11.32974977,239.12,238.97,11.32974977]
[1738271352686,11.32974977,239.09,238.94,13.53484977]
[1738271353089,11.32974977,239.09,238.95,4.1843]
[1738271353592,0.03033092,239.04,239.0,0.02770867]
[1738271354191,4.1829,239.03,239.0,0.02770867]
[1738271354992,0.03033092,239.04,239.0,0.02770867]
[1738271355194,4.1831,239.02,239.0,0.02770867]
[1738271355991,4.1832,239.01,239.0,0.02770867]
[1738271357198,0.03033092,239.04,239.0,0.02770867]
[1738271357798,4.21303092,239.04,239.0,0.02770867]
[1738271357999,0.03033092,239.04,239.0,0.02770867]
[1738271359004,0.03033092,239.04,239.01,4.1832]
[1738271359894,0.03033092,239.04,239.02,4.183]
[1738271360401,0.03033092,239.04,239.0,0.02770867]
[1738271360900,4.1829,239.03,239.0,0.02770867]
[1738271361897,0.03033092,239.04,239.0,0.02770867]
[1738271362098,4.1831,239.02,239.0,0.02770867]
[1738271363897,0.03033092,239.04,239.0,0.02770867]
[1738271364102,11.32974977,239.03,239.0,0.02770867]
[1738271364299,11.32974977,239.03,239.0,8.67e-06]
[1738271364501,4.1832,239.01,239.0,8.67e-06]
[1738271367295,14.05144977,239.03,238.87,8.7918521]
[1738271367504,11.32974977,238.98,238.87,4.6062521]
[1738271368007,4.1843,238.96,238.87,4.6062521]
[1738271368200,2.7217,239.03,238.85,12.67964977]
[1738271368201,11.32974977,238.95,238.85,4.1859]
[1738271368602,0.02750084,238.92,238.88,0.02862121]
[1738271368807,4.1846,238.94,238.88,0.02862121]
[1738271369003,0.02910815,238.92,238.88,0.02862121]
[1738271369303,11.32974977,239.01,238.88,0.02862121]
[1738271369507,0.02648367,238.92,238.91,4.185]
[1738271369703,2.7217,239.03,238.89,1.4259]
[1738271370008,0.03011714,238.94,238.89,1.4259]
[1738271370310,0.03011714,238.94,238.93,4.1846]
[1738271372004,11.32974977,239.07,238.96,4.1839]
[1738271372904,11.32974977,239.07,238.97,4.1839]
[1738271373109,0.02784525,239.04,238.99,0.02648125]
[1738271373314,11.32974977,239.13,239.02,4.1831]
[1738271373609,11.32974977,239.13,239.0,11.32974977]
[1738271373610,0.02784256,239.04,239.0,11.32974977]
[1738271373908,0.03212702,239.04,239.0,11.35760141]
[1738271374110,0.03212702,239.04,239.02,4.1829]
[1738271374714,0.03212702,239.04,239.0,0.02785164]
[1738271374913,11.36187679,239.04,239.0,0.02785164]
[1738271375314,4.1832,239.01,239.0,0.02785164]
[1738271376213,4.183,239.03,239.0,0.02785164]
[1738271378614,0.03212702,239.04,239.0,0.02785164]
[1738271379815,0.03212702,239.04,239.0,4.21125164]
[1738271380206,0.03212702,239.04,239.0,0.02785164]
[1738271380411,0.03212702,239.04,239.0,11.35760141]
[1738271380612,1.3353,239.15,239.0,11.35760141]
[1738271380917,4.1808,239.16,239.06,11.32974977]
[1738271381116,11.32974977,239.22,239.06,11.32974977]
[1738271381411,4.1806,239.16,239.08,4.1819]
[1738271381914,0.02840978,239.14,239.1,0.03048455]
[1738271385614,0.02840978,239.14,239.11,4.1815]
[1738271385814,0.02840978,239.14,239.1,0.03048455]
[1738271386118,0.02840978,239.14,239.1,4.10578455]
[1738271386414,0.02840978,239.14,239.11,4.1815]
[1738271386613,0.02840978,239.14,239.1,4.10578455]
[1738271387216,4.20940978,239.14,239.1,8.28748455]
[1738271388112,4.20940978,239.14,239.11,4.1815]
[1738271388113,0.02840978,239.14,239.11,4.1815]
[1738271388314,0.02840978,239.14,239.1,4.10578455]
[1738271388517,0.02840978,239.14,239.12,4.1812]
[1738271388716,11.32974977,239.25,239.1,4.10578455]
[1738271389015,11.32974977,239.25,239.1,4.0753]
[1738271389416,11.32974977,239.22,239.1,4.0753]
[1738271389619,11.32974977,239.25,239.1,4.0753]
[1738271389820,4.1805,239.17,239.14,0.02729816]
[1738271390414,0.02876134,239.18,239.14,4.20819816]
[1738271391014,4.20906134,239.18,239.14,0.02729816]
[1738271391211,0.02876134,239.18,239.14,0.02729816]
[1738271392316,4.1808,239.15,239.14,0.02729816]
[1738271393414,0.02876134,239.18,239.14,0.02729816]
[1738271394509,0.02876134,239.18,239.14,4.20809816]
[1738271394713,0.02876134,239.18,239.14,0.02729816]
[1738271395116,0.02876134,239.18,239.14,4.20809816]
[1738271395921,0.02876134,239.18,239.15,4.1808]
[1738271396321,0.02876134,239.18,239.14,0.02729816]
[1738271397022,0.02876134,239.18,239.17,4.1804]
[1738271399726,0.02876134,239.18,239.14,0.02729816]
[1738271400321,4.1808,239.15,239.14,0.02729816]
[1738271400520,4.1808,239.15,239.14,9.816e-05]
[1738271402217,11.32974977,239.16,239.01,2.8458]
[1738271402420,11.32974977,239.12,239.0,95.63213096]
[1738271403024,4.182,239.09,239.01,4.1832]
[1738271403327,11.32974977,239.12,239.0,95.63213096]
[1738271403525,0.02805382,239.07,239.03,0.03067025]
[1738271407729,0.02805382,239.07,239.06,15.51214977]
[1738271408130,0.02805382,239.07,239.04,4.3209]
[1738271408926,0.02805382,239.07,239.06,4.1824]
[1738271409127,0.02805382,239.07,239.04,4.3209]
[1738271409424,0.02805382,239.07,239.04,8.5035]
[1738271409622,0.02805382,239.07,239.04,4.3209]
[1738271410329,0.02805382,239.07,239.03,0.03067025]
[1738271412834,0.02805382,239.07,239.03,11.36042002]
[1738271413334,1.392,239.19,239.03,11.36042002]
[1738271413534,1.392,239.19,239.03,11.32974977]
[1738271414035,4.1814,239.12,239.07,4.1821]
[1738271414333,4.21142157,239.12,239.07,0.02933879]
[1738271414533,0.03002157,239.12,239.07,0.02933879]
[1738271415831,0.03002157,239.12,239.08,4.1818]
[1738271416335,0.03002157,239.12,239.09,4.1818]
[1738271417426,0.03002157,239.12,239.07,0.02933879]
[1738271417627,0.03002157,239.12,239.11,4.1815]
[1738271423735,2.816,239.26,239.09,11.32974977]
[1738271423933,1.4042,239.26,239.14,11.32974977]
[1738271424436,4.1795,239.23,239.18,4.1801]
[1738271424735,1.4042,239.26,239.14,11.32974977]
[1738271424942,1.4042,239.26,239.18,0.03067543]
[1738271425141,4.1791,239.25,239.21,4.1797]
[1738271425440,1.4506,239.32,239.18,11.3604252]
[1738271426342,4.1784,239.29,239.24,4.1792]
[1738271426748,4.1784,239.29,239.24,4.20700326]
[1738271427542,4.1784,239.29,239.24,0.02780326]
[1738271428540,2.8137,239.34,239.24,0.02780326]
[1738271429140,4.1784,239.29,239.24,0.02780326]
[1738271429340,2.8137,239.34,239.24,0.02780326]
[1738271431146,4.178,239.31,239.26,4.1789]
[1738271432049,4.178,239.31,239.25,4.179]
[1738271432245,4.1783,239.3,239.25,4.179]
[1738271433449,11.32974977,239.36,239.24,0.02780326]
[1738271433650,11.32974977,239.36,239.26,4.1789]
[1738271434047,4.1779,239.32,239.26,4.1789]
[1738271434554,4.1779,239.32,239.27,0.03099201]
[1738271435056,4.178,239.31,239.27,0.03099201]
[1738271436156,14.15994977,239.39,239.27,0.03099201]
[1738271436157,4.1778,239.33,239.27,0.03099201]
[1738271436354,2.8302,239.39,239.27,11.36074178]
[1738271436555,1.3952,239.39,239.27,11.36074178]
[1738271437053,4.1773,239.36,239.31,4.1778]
[1738271437554,69.90291471,239.44,239.31,0.02875218]
[1738271437758,69.90291471,239.44,239.33,4.1775]
[1738271437954,69.90291471,239.44,239.3,11.32974977]
[1738271438158,69.90291471,239.44,239.36,0.0292675]
[1738271438653,4.1762,239.42,239.36,0.0292675]
[1738271438855,69.90291471,239.44,239.36,0.0292675]
[1738271439859,4.1769,239.38,239.36,0.0292675]
[1738271440058,11.32974977,239.42,239.36,0.0292675]
[1738271441062,4.177,239.37,239.36,0.0292675]
[1738271446163,11.32974977,239.39,239.24,11.32974977]
[1738271446355,4.178,239.31,239.25,4.1789]
[1738271446855,4.178,239.31,239.26,4.1788]
[1738271447061,4.1784,239.29,239.21,11.32974977]
[1738271447261,11.32974977,239.36,239.21,11.32974977]
[1738271447463,0.03070317,239.27,239.23,4.21111955]
[1738271447668,4.1786,239.28,239.23,0.03181955]
[1738271447854,0.03136051,239.27,239.23,0.03181955]
[1738271448263,0.03136051,239.27,239.24,4.1792]
[1738271448460,4.21016051,239.27,239.23,0.03181955]
[1738271450064,4.21016051,239.27,239.24,4.1792]
[1738271450264,4.1789,239.26,239.23,0.03181955]
[1738271450664,0.03136051,239.27,239.23,0.03181955]
[1738271450964,4.1792,239.24,239.23,0.03181955]
[1738271452164,0.03136051,239.27,239.12,11.32974977]
[1738271452364,11.32974977,239.26,239.14,4.1809]
[1738271453260,0.03169463,239.22,239.18,0.03004922]
[1738271453759,4.1801,239.19,239.18,0.03004922]
[1738271455564,0.03169463,239.22,239.09,12.72594977]
[1738271455565,0.03169463,239.22,239.09,11.32974977]
[1738271455765,11.32974977,239.23,239.09,11.32974977]
[1738271456768,0.02697883,239.18,239.14,0.02709039]
[1738271457070,4.1805,239.17,239.14,0.02709039]
[1738271458063,0.02697883,239.18,239.14,0.02709039]
[1738271458769,0.02697883,239.18,239.15,11.32974977]
[1738271460066,0.02697883,239.18,239.15,15.51034977]
[1738271460569,0.02697883,239.18,239.15,11.32974977]
[1738271461070,0.02697883,239.18,239.14,0.02709039]
[1738271461474,4.1805,239.17,239.14,0.02709039]
[1738271461672,0.02697883,239.18,239.14,0.02709039]
[1738271462469,4.1805,239.17,239.14,0.02709039]
[1738271462871,0.02697883,239.18,239.14,0.02709039]
[1738271463174,4.1808,239.15,239.14,0.02709039]
[1738271466278,4.20727883,239.18,239.14,0.02709039]
[1738271466977,0.02697883,239.18,239.14,0.02709039]
[1738271467176,4.1808,239.16,239.14,0.02709039]
[1738271467378,0.02697883,239.18,239.14,0.02709039]
[1738271469179,4.1808,239.15,239.14,0.02709039]
[1738271471583,4.1806,239.16,239.14,0.02709039]
[1738271475885,4.1805,239.17,239.14,0.02709039]
[1738271478190,0.02697883,239.18,239.14,0.02709039]
[1738271478386,4.1808,239.15,239.14,0.02709039]
[1738271478583,11.43017406,239.15,239.14,0.02709039]
[1738271478983,11.43017406,239.15,239.08,4.60226914]
[1738271478984,7.24937406,239.15,239.04,7.24937406]
[1738271479184,7.24937406,239.11,239.02,10.00897406]
[1738271479681,7.24937406,239.11,239.04,7.24937406]
[1738271480188,0.02853858,239.1,239.05,0.02984326]
[1738271481283,4.1821,239.08,239.05,0.02984326]
[1738271481588,0.02853858,239.1,239.05,0.02984326]
[1738271481790,7.24937406,239.09,239.05,0.02984326]
[1738271481988,4.1824,239.06,239.05,0.02984326]
[1738271483789,0.02853858,239.1,239.05,0.02984326]
[1738271484490,4.182,239.09,239.05,0.02984326]
[1738271484890,0.02853858,239.1,239.05,0.02984326]
[1738271485786,4.1823,239.07,239.05,0.02984326]
[1738271486590,0.02853858,239.1,239.05,0.02984326]
[1738271486791,4.1821,239.08,239.05,0.02984326]
[1738271487188,0.02853858,239.1,239.05,0.02984326]
[1738271488083,0.02853858,239.1,239.05,11.36881384]
[1738271488581,0.02853858,239.1,239.06,4.1823]
[1738271489383,0.02853858,239.1,239.05,11.36881384]
[1738271491489,0.02853858,239.1,239.06,1.4496]
[1738271491694,0.02853858,239.1,239.09,4.1818]
[1738271492795,0.02853858,239.1,239.07,4.1821]
[1738271493893,0.02853858,239.1,239.06,1.4496]
[1738271495098,4.182,239.09,239.05,0.02984326]
[1738271495802,0.02853858,239.1,239.05,0.02984326]
[1738271496897,4.1824,239.06,239.05,0.02984326]
[1738271501094,0.02853858,239.1,239.05,0.02984326]
[1738271501703,0.02853858,239.1,239.05,4.21234326]
[1738271501900,0.02853858,239.1,239.05,0.02984326]
[1738271502806,4.1824,239.06,239.05,0.02984326]
[1738271503205,11.33897058,239.08,238.92,4.2113]
[1738271503403,4.1832,239.02,238.92,8.3961]
[1738271503707,11.33897058,239.05,238.92,4.2113]
[1738271503902,4.1845,238.94,238.87,11.33897058]
[1738271504101,11.33897058,238.99,238.86,4.1857]
[1738271504301,11.33897058,238.96,238.83,4.2426]
[1738271504505,4.185,238.91,238.9,0.03128256]
[1738271504801,11.33897058,238.91,238.82,172.83223892]
[1738271505006,4.186,238.86,238.82,172.83223892]
[1738271505304,11.33897058,238.91,238.82,172.83223892]
[1738271505507,11.33897058,238.91,238.76,172.83223892]
[1738271506105,0.03017329,238.86,238.81,0.02986771]
[1738271506608,0.03017329,238.86,238.82,4.1865]
[1738271507006,0.03017329,238.86,238.81,0.02986771]
[1738271507408,0.03017329,238.86,238.84,4.1861]
[1738271507612,11.33897058,239.03,238.85,11.33897058]
[1738271507800,11.33897058,239.03,238.9,11.33897058]
[1738271508005,4.1838,238.98,238.89,4.1852]
[1738271508204,11.33897058,238.97,238.81,11.33897058]
[1738271508602,4.1846,238.93,238.84,4.1862]
[1738271508804,0.03057113,238.91,238.87,0.0291038]
[1738271509107,4.1852,238.9,238.87,0.0291038]
[1738271509409,11.36954171,238.91,238.87,0.0291038]
[1738271509809,4.1854,238.89,238.87,0.0291038]
[1738271510807,15.55464171,238.91,238.87,0.0291038]
[1738271511612,4.21567113,238.91,238.87,0.0291038]
[1738271511807,0.03057113,238.91,238.87,0.0291038]
[1738271515613,4.1876,238.76,238.68,11.33897058]
[1738271515810,11.33897058,238.82,238.67,2.7971]
[1738271516614,11.33897058,238.82,238.72,0.02789048]
[1738271516814,0.02912876,238.77,238.72,0.02789048]
[1738271517014,4.21662876,238.77,238.72,0.02789048]
[1738271517216,0.02912876,238.77,238.72,0.02789048]
[1738271521217,0.02912876,238.77,238.76,4.1876]
[1738271521913,4.1859,238.87,238.79,4.187]
[1738271522116,5.4982,238.9,238.74,11.33897058]
[1738271522117,5.4982,238.9,238.75,1.3578]
[1738271522415,4.1856,238.88,238.79,4.187]
[1738271522616,4.1856,238.88,238.75,1.3578]
[1738271523115,0.02724627,238.84,238.79,4.21395568]
[1738271523811,0.02724627,238.84,238.81,4.1867]
[1738271524008,0.02724627,238.84,238.79,0.02695568]
[1738271525412,0.02724627,238.84,238.81,4.1867]
[1738271526321,0.02724627,238.84,238.79,0.02695568]
[1738271529121,4.1866,238.82,238.79,0.02695568]
[1738271530221,4.21354627,238.84,238.79,0.02695568]
[1738271530422,0.02724627,238.84,238.79,0.02695568]
[1738271532323,0.02724627,238.84,238.82,4.1866]
[1738271532916,0.02724627,238.84,238.79,0.02695568]
[1738271533325,0.02724627,238.84,238.79,11.36592626]
[1738271533522,0.02724627,238.84,238.8,1.4273]
[1738271534024,11.33897058,238.95,238.8,1.4273]
[1738271535221,0.02963982,238.9,238.85,4.21378037]
[1738271535422,0.02963982,238.9,238.85,0.02778037]
[1738271535823,0.02963982,238.9,238.87,4.1857]
[1738271536320,11.33897058,239.02,238.89,11.33897058]
[1738271536519,11.33897058,239.05,238.9,1.3953]
[1738271536926,4.1836,238.99,238.92,4.1847]
[1738271537427,11.33897058,239.02,238.93,0.03170855]
[1738271537626,4.21267712,238.98,238.93,0.03170855]
[1738271539229,0.02887712,238.98,238.93,4.21620855]
[1738271542730,0.02887712,238.98,238.94,4.1844]
[1738271543228,0.02887712,238.98,238.93,0.03170855]
[1738271543525,0.02887712,238.98,238.95,4.1843]
[1738271543728,0.02887712,238.98,238.93,11.37067913]
[1738271543927,0.02887712,238.98,238.94,1.3183]
[1738271544330,0.02887712,238.98,238.97,4.1839]
[1738271544832,0.02887712,238.98,238.94,1.3183]
[1738271544833,11.33897058,239.09,238.94,1.3183]
[1738271545228,11.33897058,239.06,238.94,1.3183]
[1738271545532,11.33897058,239.06,238.95,4.1843]
[1738271546025,4.1835,239.0,238.98,0.02778004]
[1738271547233,0.03206073,239.03,238.98,0.02778004]
[1738271547535,4.1833,239.01,238.98,0.02778004]
[1738271547934,0.03206073,239.03,238.98,0.02778004]
[1738271549331,0.03206073,239.03,238.99,4.1836]
[1738271549633,0.03206073,239.03,238.98,0.02778004]
[1738271549833,0.03206073,239.03,238.99,4.1835]
[1738271550031,0.03206073,239.03,238.99,11.33897058]
[1738271550230,1.4204,239.14,238.99,11.33897058]
[1738271550537,4.1817,239.1,239.04,4.1827]
[1738271550736,4.1817,239.1,239.0,1.328]
[1738271551137,4.1813,239.12,239.02,11.33897058]
[1738271551339,11.33897058,239.18,239.02,11.33897058]
[1738271551539,0.02687605,239.09,239.05,0.02867895]
[1738271551739,0.02687605,239.09,239.06,4.1823]
[1738271552039,0.03090969,239.1,239.06,4.1823]
[1738271552437,0.03090969,239.1,239.05,0.02867895]
[1738271552635,0.03090969,239.1,239.07,4.1821]
[1738271554333,0.03090969,239.1,239.05,4.21107895]
[1738271556739,0.03090969,239.1,239.05,0.02867895]
[1738271556939,4.1823,239.07,239.05,0.02867895]
[1738271557141,0.03090969,239.1,239.05,0.02867895]
[1738271557535,4.1824,239.06,239.05,0.02867895]
[1738271563145,4.1821,239.08,239.05,0.02867895]
[1738271563345,0.03090969,239.1,239.05,0.02867895]
[1738271565054,0.03090969,239.1,239.07,4.1821]
[1738271565353,0.03090969,239.1,239.05,0.02867895]
[1738271566361,0.03090969,239.1,239.06,4.1823]
[1738271574670,4.1818,239.09,239.05,4.21117895]
[1738271574868,0.03090969,239.1,239.05,0.02867895]
[1738271575966,4.182,239.08,239.05,0.02867895]
[1738271577170,4.1822,239.07,239.05,0.02867895]
[1738271577365,0.03090969,239.1,239.05,0.02867895]
[1738271578168,4.1823,239.07,239.05,0.02867895]
[1738271578869,0.03090969,239.1,239.05,0.02867895]
[1738271579468,4.1824,239.06,239.05,0.02867895]
[1738271581173,11.33897058,239.09,238.93,11.33897058]
[1738271581471,11.33897058,239.06,238.9,12.76957058]
[1738271581972,4.1832,239.02,238.93,4.1845]
[1738271582273,0.03002683,239.0,238.95,0.0309785]
[1738271582572,4.1826,239.05,238.97,4.1838]
[1738271582767,0.03062931,239.0,238.95,0.03012384]
[1738271583471,0.03062931,239.0,238.98,4.1837]
[1738271583972,0.03062931,239.0,238.96,11.33897058]
[1738271584568,0.03062931,239.0,238.99,7.25731989]
[1738271585272,0.03062931,239.0,238.99,11.44091989]
[1738271587478,2.7497,239.11,239.04,4.1826]
[1738271587673,7.25731989,239.14,239.05,7.25731989]
[1738271588472,0.03136266,239.12,239.07,0.02761768]
[1738271589072,4.1816,239.11,239.07,0.02761768]
[1738271589876,0.03136266,239.12,239.07,11.46713757]
[1738271590378,0.03136266,239.12,239.07,7.28493757]
[1738271590574,0.03136266,239.12,239.09,7.25731989]
[1738271591379,0.03136266,239.12,239.09,11.43911989]
[1738271591678,0.03136266,239.12,239.09,7.25731989]
[1738271591879,0.03136266,239.12,239.09,11.43911989]
[1738271592079,0.03136266,239.12,239.11,7.25731989]
[1738271592279,0.03136266,239.12,239.11,11.43881989]
[1738271592781,0.03136266,239.12,239.11,7.25731989]
[1738271594272,0.03136266,239.12,239.09,7.25731989]
[1738271594673,0.03136266,239.12,239.07,4.20961768]
[1738271595483,4.21276266,239.12,239.07,4.20961768]
[1738271595683,0.03136266,239.12,239.07,4.20961768]
[1738271595881,0.03136266,239.12,239.07,0.02761768]
[1738271596183,4.1816,239.11,239.07,0.02761768]
[1738271596482,0.03136266,239.12,239.07,0.02761768]
[1738271597582,4.1818,239.1,239.07,0.02761768]
[1738271599186,0.03136266,239.12,239.07,0.02761768]
[1738271600186,0.03136266,239.12,239.09,4.1818]
[1738271600483,0.03136266,239.12,239.07,0.02761768]
[1738271600982,0.03136266,239.12,239.1,4.1815]
[1738271601785,0.03136266,239.12,239.09,11.33020575]
[1738271601786,0.03136266,239.12,239.07,0.02761768]
[1738271603886,4.21286266,239.12,239.07,4.20981768]
[1738271605181,4.21286266,239.12,239.07,0.02761768]
[1738271606183,4.21286266,239.12,239.07,4.20981768]
[1738271606691,4.21286266,239.12,239.07,0.02761768]
[1738271606988,4.21286266,239.12,239.08,4.182]
[1738271608088,0.03136266,239.12,239.08,4.182]
[1738271610184,0.03136266,239.12,239.07,0.02761768]
[1738271610391,0.03136266,239.12,239.07,11.35782343]
[1738271610792,0.03136266,239.12,239.11,4.1815]
[1738271612390,0.03136266,239.12,239.1,4.1816]
[1738271612694,0.03136266,239.12,239.07,11.35782343]
[1738271612996,0.03136266,239.12,239.08,4.182]
[1738271613494,0.03136266,239.12,239.07,11.35782343]
[1738271613694,4.21266266,239.12,239.07,4.20981768]
[1738271614086,0.03136266,239.12,239.07,4.20981768]
[1738271614996,4.1817,239.1,239.07,0.02761768]
[1738271618190,0.03136266,239.12,239.07,0.02761768]
[1738271618389,4.182,239.08,239.07,0.02761768]
[1738271618997,7.25331495,239.09,238.98,11.43691495]
[1738271619196,7.25331495,239.06,238.98,7.25331495]
[1738271619594,4.183,239.03,238.98,7.25331495]
[1738271619993,7.25331495,239.06,238.98,7.25331495]
[1738271620197,0.03080424,239.03,238.98,7.28480067]
[1738271620397,4.1831,239.02,238.98,7.28480067]
[1738271621292,0.03080424,239.03,238.98,7.28480067]
[1738271622400,4.21380424,239.03,238.98,7.28480067]
[1738271624402,0.03080424,239.03,238.98,11.46850067]
[1738271625101,4.21380424,239.03,238.98,11.46850067]
[1738271625999,4.1831,239.02,238.98,7.28480067]
[1738271627002,4.1833,239.01,238.98,7.28480067]
[1738271627804,0.03080424,239.03,238.98,7.28480067]
[1738271628004,0.03080424,239.03,239.0,7.25331495]
[1738271629305,0.03080424,239.03,239.02,7.25331495]
[1738271629907,0.03080424,239.03,239.02,11.43641495]
[1738271632805,0.03080424,239.03,239.02,7.25331495]
[1738271633009,4.21370424,239.03,239.02,7.25331495]
[1738271633309,4.21370424,239.03,239.0,7.25331495]
[1738271635208,0.03080424,239.03,239.02,7.25331495]
[1738271643210,0.03080424,239.03,239.02,11.43641495]
[1738271645524,0.03080424,239.03,239.02,7.25331495]
[1738271645723,0.03080424,239.03,239.0,7.25331495]
[1738271646724,4.21370424,239.03,239.0,7.25331495]
[1738271647114,0.03080424,239.03,238.98,0.03148572]
[1738271647414,4.1836,238.99,238.98,0.03148572]
[1738271649025,0.03080424,239.03,238.98,0.03148572]
[1738271649224,0.03080424,239.03,239.0,7.25331495]
[1738271649924,0.03080424,239.03,238.98,7.28480067]
[1738271650129,0.03080424,239.03,238.98,0.03148572]
[1738271650920,4.1833,239.01,238.98,0.03148572]
[1738271653424,0.03080424,239.03,238.98,0.03148572]
[1738271653625,4.1831,239.02,238.98,0.03148572]
[1738271655927,0.03080424,239.03,238.98,0.03148572]
[1738271656622,4.1834,239.01,238.98,0.03148572]
[1738271656827,0.03080424,239.03,238.98,0.03148572]
[1738271657026,7.25331495,239.02,238.98,0.03148572]
[1738271657827,4.1836,238.99,238.98,0.03148572]
[1738271658428,4.1833,239.01,238.98,0.03148572]
[1738271658628,0.03080424,239.03,238.98,0.03148572]
[1738271658926,4.1831,239.02,238.98,0.03148572]
[1738271659520,0.03080424,239.03,238.98,0.03148572]
[1738271659725,4.1833,239.01,238.98,0.03148572]
[1738271660627,0.03080424,239.03,238.98,7.28480067]
[1738271660927,0.03080424,239.03,239.0,7.25331495]
[1738271663727,0.03080424,239.03,239.0,11.43671495]
[1738271666930,0.03080424,239.03,239.0,7.25331495]
[1738271667235,7.25331495,239.16,239.02,7.25331495]
[1738271667434,4.1815,239.12,239.09,7.25331495]
[1738271667635,7.25331495,239.18,239.09,7.25331495]
[1738271667834,4.1813,239.13,239.09,7.25331495]
[1738271668034,7.25331495,239.18,239.09,7.25331495]
[1738271668436,4.21189615,239.16,239.11,7.28337769]
[1738271668636,4.1808,239.16,239.11,7.25331495]
[1738271668832,0.02786718,239.16,239.11,7.28309147]
[1738271669039,0.02786718,239.16,239.12,7.25331495]
[1738271669633,0.02786718,239.16,239.14,7.25331495]
[1738271669839,30.0663448,239.27,239.14,7.25331495]
[1738271670034,30.0663448,239.27,239.19,7.25331495]
[1738271670338,7.25331495,239.27,239.19,7.25331495]
[1738271671136,4.1791,239.25,239.21,0.0288318]
[1738271671438,7.25331495,239.31,239.23,7.25331495]
[1738271671638,4.178,239.32,239.23,7.25331495]
[1738271671830,4.178,239.32,239.25,7.25331495]
[1738271672132,4.1784,239.29,239.24,0.02735702]
[1738271672639,7.25331495,239.31,239.24,0.02735702]
[1738271672837,4.1789,239.26,239.24,0.02735702]
[1738271673331,4.1786,239.28,239.24,7.28067197]
[1738271673533,7.25331495,239.33,239.26,7.25331495]
[1738271673933,4.178,239.31,239.24,7.28205312]
[1738271675339,4.1782,239.3,239.24,7.28205312]
[1738271676439,4.1789,239.26,239.24,0.02873817]
[1738271676833,7.25331495,239.27,239.18,7.25331495]
[1738271677037,7.25331495,239.27,239.23,0.03097241]
[1738271677238,7.25331495,239.25,239.23,0.03097241]
[1738271677541,4.1792,239.24,239.23,0.03097241]
[1738271677741,4.1792,239.24,239.23,7.241e-05]
[1738271679438,0.03114489,239.26,239.23,7.241e-05]
[1738271679643,4.21014489,239.26,239.23,7.241e-05]
[1738271680242,0.03114489,239.26,239.23,7.241e-05]
[1738271680543,4.1791,239.25,239.23,7.241e-05]
[1738271681543,4.1792,239.24,239.23,7.241e-05]
[1738271683142,0.03114489,239.26,239.23,7.241e-05]
[1738271683343,4.1791,239.25,239.23,7.241e-05]
[1738271684844,0.03114489,239.26,239.23,7.241e-05]
[1738271685546,7.25331495,239.42,239.25,7.25331495]
[1738271685741,7.25331495,239.44,239.35,7.25331495]
[1738271686248,4.1766,239.39,239.35,7.25331495]
[1738271686541,4.1766,239.39,239.26,2.6772]
[1738271686542,4.177,239.37,239.33,7.25331495]
[1738271686744,4.177,239.37,239.35,0.02955023]
[1738271688150,4.1771,239.36,239.35,0.02955023]
[1738271690548,11.43041495,239.36,239.35,0.02955023]
[1738271692452,4.1771,239.36,239.35,0.02955023]
[1738271695152,4.177,239.37,239.35,0.02955023]
[1738271696150,12.7534792,239.46,239.35,0.02955023]
[1738271696355,1.4437,239.46,239.35,0.02955023]
[1738271696851,4.1763,239.41,239.35,4.20665023]
[1738271697656,4.1763,239.41,239.35,0.02955023]
[1738271697854,4.1765,239.4,239.35,0.02955023]
[1738271700158,4.1767,239.39,239.35,0.02955023]
[1738271700556,11.3097792,239.65,239.38,22.6195584]
[1738271700760,4.1734,239.58,239.5,11.3097792]
[1738271700956,2.26488521,239.64,239.5,11.3097792]
[1738271701264,4.1731,239.6,239.53,4.1742]
[1738271701466,0.83462003,239.63,239.55,0.02852518]
[1738271702850,4.1731,239.59,239.55,0.02852518]
[1738271703058,0.83462003,239.63,239.55,0.02852518]
[1738271703958,4.1735,239.57,239.55,0.02852518]